[Event "MCCT Oslo Esports Cup 2022"]
[Site "Oslo"]
[Date "2022.04.20"]
[Round "3.2"]
[White "Hansen, Eric"]
[Black "Mamedyarov, Shakhriyar"]
[Result "0-1"]
[ECO "C60"]
[WhiteElo "2606"]
[BlackElo "2771"]
[Annotator "TA"]
[PlyCount "124"]
[EventDate "2022.04.14"]
[EventType "tourn"]
[EventCountry "NOR"]
[SourceTitle "playchess.com"]
[Source "ChessBase"]
[SourceQuality "1"]
[TimeControl "1500+10"]

{[%evp 16,124,14,20,12,10,8,13,6,0,12,21,10,16,16,0,10,0,0,0,0,0,22,18,10,19,25,23,22,0,33,0,0,0,0,0,0,0,0,0,0,0,0,0,0,0,0,0,0,0,0,0,0,0,0,0,0,0,0,0,0,0,0,0,0,0,0,0,0,0,0,0,0,0,0,0,0,-83,-73,-187,-114,-672,-592,-536,-562,-418,-491,-12843,-12843,-12844,-12843,-12843,-12843,-12844,-12844,-12845,-12845,-12845,-12846,-12848,-726,-687,-61,-634,-611,-544,-54,-61,-61,-12850,-12850]} 1. e4 {[%emt 0:10:00]} e5 {[%emt 0:10:00]} 2. Nf3 {[%emt 0:00:11]} Nc6 {[%emt 0:00:01]} 3. Bb5 {[%emt 0:00:02]} g6 {[%emt 0:00:01]} 4. d4 {[%emt 0:00:29]} exd4 {[%emt 0:00:02]} 5. Bg5 {[%emt 0:00:00]} Be7 {[%emt 0:00:01]} 6. Bxe7 {[%emt 0:00:09]} Qxe7 {[%emt 0:00:00]} 7. Bxc6 {[%emt 0:00:03]} dxc6 {[%emt 0:00:00]} 8. Qxd4 {[%emt 0:00:01]} Nf6 {[%emt 0:00:02]} 9. Nc3 {[%emt 0:00:01]} Bg4 {[%emt 0:00:03] C60: Ruy Lopez: Unusual Black 3rd moves and 3...g6.} 10. Nd2 {[%emt 0:00:26]} c5 {[%emt 0:00:02]} 11. Qe3 {[%emt 0:00:02]} O-O-O {[%emt 0:00:02] The position is equal.} 12. h3 {[%emt 0:00:08]} Be6 {[%emt 0:00:21]} 13. O-O-O {[%emt 0:00:03]} b6 {[%emt 0:00:00]} 14. Rhe1 {[%emt 0:01:26]} Kb8 {[%emt 0:00:02]} 15. f4 {[%emt 0:01:15]} Bc8 {[%emt 0:00:57]} 16. e5 {[%emt 0:02:34]} Nd5 {[%emt 0:00:03]} 17. Nxd5 {[%emt 0:00:13]} Rxd5 {[%emt 0:00:00]} 18. Ne4 {[%emt 0:00:07] [#]} Bb7 $146 {[%emt 0:00:14]} ({Predecessor:} 18... Rxd1+ 19. Rxd1 h5 20. Nf6 Rd8 21. Rxd8 Qxd8 22. g4 hxg4 23. hxg4 Qh8 24. b3 Qh1+ {0-1 (44) Volokitin,A (2636)-Shyam,S (2520) Riga 2019}) 19. Rxd5 {[%emt 0:00:09]} Bxd5 {[%emt 0:00:00]} 20. g4 {[%emt 0:00:50]} Bxe4 {[%emt 0:04:27]} 21. Qxe4 $11 {[%emt 0:00:02][%mdl 4096] Endgame KQR-KQR} Rd8 {[%emt 0:00:01]} 22. Rd1 {[%emt 0:00:01]} Rxd1+ {[%emt 0:00:30]} 23. Kxd1 {[%emt 0:00:01] KQ-KQ} Qh4 $1 {[%emt 0:01:09]} 24. Qf3 {[%emt 0:00:47]} Qd8+ {[%emt 0:00:34]} 25. Ke2 {[%emt 0:01:20]} Qd4 {[%emt 0:00:07]} 26. b3 {[%emt 0:00:01]} c4 {[%emt 0:01:55]} 27. c3 {[%emt 0:04:17]} Qg1 {[%emt 0:00:20]} 28. bxc4 {[%emt 0:00:02]} Qb1 {[%emt 0:00:29]} 29. Qd3 {[%emt 0:02:21]} Qxa2+ {[%emt 0:00:07]} 30. Kf3 {[%emt 0:00:02]} Kc8 {[%emt 0:01:07]} 31. f5 {[%emt 0:01:44]} Qh2 {[%emt 0:00:39][%csl LRe5,LRh3]} 32. Ke4 {[%emt 0:00:02]} g5 {[%emt 0:02:48][%cal Of7f6]} 33. Qe3 {[%emt 0:01:33]} Qh1+ {[%emt 0:03:51]} 34. Kd3 {[%emt 0:00:10]} Qd1+ {[%emt 0:00:01]} 35. Ke4 {[%emt 0:00:04]} Qb1+ {[%emt 0:00:10]} 36. Kf3 {[%emt 0:00:18]} Qf1+ {[%emt 0:00:04]} 37. Kg3 {[%emt 0:00:09]} Qxc4 {[%emt 0:00:08]} 38. Qxg5 {[%emt 0:00:14]} Qxc3+ {[%emt 0:00:05]} 39. Kg2 {[%emt 0:00:10]} Qxe5 {[%emt 0:00:26]} 40. Qg8+ {[%emt 0:00:04]} Kb7 {[%emt 0:00:02]} 41. Qxf7 {[%emt 0:00:03]} a5 {[%emt 0:00:10]} 42. f6 {[%emt 0:00:02] Strongly threatening Qe7.} a4 {[%emt 0:00:33] Threatens to win with ...a3.} 43. Qe7 {[%emt 0:00:01]} Qd5+ {[%emt 0:00:03]} 44. Kf2 {[%emt 0:00:29] And now f7 would win.} a3 {[%emt 0:00:21]} 45. Qxa3 {[%emt 0:00:16] Qf3 is the strong threat.} Qd4+ {[%emt 0:00:03]} 46. Qe3 {[%emt 0:00:14]} (46. Kg2 $11 Qxf6 47. Qd3) 46... Qxf6+ $17 {[%emt 0:00:00]} 47. Kg3 {[%emt 0:00:02] [#]} (47. Ke1 $17 {was necessary.}) 47... Qd6+ {[%emt 0:00:15]} ({Better is} 47... b5 $1 $19 {Hoping for ...Qd6+.} 48. Qe4+ Kb6) 48. Kh4 $2 {[%emt 0:00:05][%mdl 8192]} (48. Kf2 $17) 48... Qd5 {[%emt 0:00:24]} 49. Qe7 {[%emt 0:00:21]} Qd3 {[%emt 0:00:01]} 50. Qe5 {[%emt 0:00:13]} c5 {[%emt 0:00:33]} 51. Qf5 {[%emt 0:00:06]} (51. Qg7+ $142 Kc8 52. Qh6 Qd8+ 53. g5) 51... Qxf5 $19 {[%emt 0:00:09]} 52. gxf5 {[%emt 0:00:00] K3P-KPP} Kc6 {[%emt 0:00:02]} 53. Kg5 {[%emt 0:00:03]} c4 {[%emt 0:00:16]} 54. f6 {[%emt 0:00:01]} c3 {[%emt 0:00:02]} 55. f7 {[%emt 0:00:01]} c2 {[%emt 0:00:01]} 56. f8=Q {[%emt 0:00:02]} c1=Q+ {[%emt 0:00:01] KQ-KQ} 57. Kg4 {[%emt 0:00:22]} Qc4+ {[%emt 0:00:03]} (57... Qg1+ $142 58. Kh4 Qd4+ 59. Kg3 Qd6+ 60. Qf4 Qxf4+ 61. Kxf4 Kd5 62. Ke3 Kc4 63. Kd2 Kb3 64. h4 b5 65. h5 b4 66. Kd3 Ka2 67. Ke4 b3 68. Kf5 b2 69. Kg4 b1=Q 70. h6 Kb3 71. Kf4 Kc4 72. Kg5 Qe4 73. Kf6 Kd5 74. Kf7 Kd6 75. Kg8 Ke6 76. Kh8 Qg2 77. Kxh7 Kf7 78. Kh8 Qg8#) 58. Kg3 {[%emt 0:00:06]} Qc3+ $2 {[%emt 0:00:04]} (58... Qd3+ $19 59. Kf2 b5) 59. Kg4 $2 {[%emt 0:00:05][%mdl 8192]} (59. Kg2 $15 Qd2+ 60. Kf1) 59... Qd4+ {[%emt 0:00:07]} ({Worse is} 59... Qc4+ 60. Kg3 $17) 60. Kf3 {[%emt 0:00:07] [#]} Qd5+ $2 {[%emt 0:00:01]} (60... Qd3+ $1 $19 61. Kf2 b5) 61. Ke2 $1 $15 {[%emt 0:00:24]} Qe5+ {[%emt 0:00:10]} 62. Kd1 $2 {[%emt 0:00:08][%mdl 8192]} (62. Kf1 $15) 62... Qd6+ {[%emt 0:00:02] Weighted Error Value: White=0.60/Black=0.46} 0-1

[Event "MCCT Oslo Esports Cup 2022"]
[Site "Oslo"]
[Date "2022.04.20"]
[Round "3.3"]
[White "Giri, Anish"]
[Black "Carlsen, Magnus"]
[Result "0-1"]
[ECO "A79"]
[WhiteElo "2773"]
[BlackElo "2864"]
[Annotator "TA"]
[PlyCount "106"]
[EventDate "2022.04.14"]
[EventType "tourn"]
[EventCountry "NOR"]
[SourceTitle "playchess.com"]
[Source "ChessBase"]
[SourceQuality "1"]
[TimeControl "1500+10"]

{[%evp 26,106,52,43,63,52,58,42,48,47,45,45,31,14,22,9,46,20,47,21,20,19,27,11,17,16,21,21,20,0,18,-3,-37,-30,-4,-52,0,-147,-149,-183,-155,-281,-276,-270,-279,-250,-246,-294,-280,-264,-258,-235,-215,-372,-370,-427,-282,-345,-168,-246,-202,-233,-234,-336,-326,-407,-379,-1772,-1773,-1833,-1468,-1857,-1485,-1472,-851,-2437,-4821,-4829,-4788,-3011,-2695,-2318,-2243]} 1. d4 {[%emt 0:10:00]} e6 {[%emt 0:10:00]} 2. c4 {[%emt 0:00:02]} c5 {[%emt 0:00:02]} 3. d5 {[%emt 0:00:04]} exd5 {[%emt 0:00:01]} 4. cxd5 {[%emt 0:00:00]} d6 {[%emt 0:00:00]} 5. Nc3 {[%emt 0:00:06]} g6 {[%emt 0:00:02]} 6. Nf3 {[%emt 0:01:23]} Bg7 {[%emt 0:00:40]} 7. e4 {[%emt 0:00:22]} Nf6 {[%emt 0:00:05]} 8. Nd2 {[%emt 0:00:06]} O-O {[%emt 0:00:02]} 9. Be2 {[%emt 0:00:01]} Na6 {[%emt 0:01:07]} 10. O-O {[%emt 0:00:11]} Re8 {[%emt 0:00:03]} 11. f3 {[%emt 0:02:00]} Nc7 {[%emt 0:00:10]} 12. a4 {[%emt 0:00:02]} b6 {[%emt 0:00:22]} 13. Nc4 {[%emt 0:00:05]} Ba6 {[%emt 0:00:03]} 14. Bg5 {[%emt 0:00:03]} Bxc4 {[%emt 0:00:20] A79: Modern Benoni: Classical: 9...Re8 10 Nd2 Na6 11 f3.} 15. Bxc4 {[%emt 0:00:00]} a6 {[%emt 0:00:05]} 16. Kh1 {[%emt 0:01:20]} h6 {[%emt 0:02:18] White is slightly better.} 17. Bh4 {[%emt 0:00:08]} Qd7 {[%emt 0:00:26]} 18. Qd3 {[%emt 0:03:35]} Nh5 {[%emt 0:00:02]} 19. Rfe1 {[%emt 0:02:44] [#]} Be5 $146 {[%emt 0:02:57]} ({Predecessor:} 19... g5 20. Bf2 Nf4 21. Qc2 b5 22. Bf1 b4 23. Nb1 b3 24. Qc1 Rab8 25. Nd2 f5 {1-0 (43) Berkes,F (2671)-Markoja,B (2453) Struga 2021}) 20. Bf2 {[%emt 0:00:09]} Reb8 {[%emt 0:00:51]} 21. Ra3 {[%emt 0:01:51]} Nf4 {[%emt 0:01:52]} 22. Qd2 {[%emt 0:00:55]} b5 {[%emt 0:00:06]} 23. axb5 {[%emt 0:00:00]} axb5 {[%emt 0:00:04]} 24. Rxa8 {[%emt 0:00:02]} Rxa8 {[%emt 0:00:04]} 25. Bf1 {[%emt 0:00:06]} g5 {[%emt 0:01:05]} 26. g3 {[%emt 0:00:28]} Ng6 {[%emt 0:00:02]} 27. Be3 {[%emt 0:00:09]} Qe7 {[%emt 0:00:26]} 28. Bh3 {[%emt 0:01:33]} b4 {[%emt 0:01:44]} 29. Nd1 {[%emt 0:00:01]} Ra1 {[%emt 0:00:20]} 30. Qe2 {[%emt 0:00:59]} (30. f4 $11 {feels stronger.} gxf4 31. gxf4) 30... Qf6 {[%emt 0:00:16]} (30... Qe8 $15) 31. b3 {[%emt 0:00:01] [#] Black converts the advantage convincingly.} (31. Rf1 $11 {remains equal.}) 31... Nb5 $1 $17 {[%emt 0:00:10][%cal Oe5d4][%mdl 512]} 32. Rf1 {[%emt 0:01:10]} (32. Bf5 Bc3) 32... Nd4 {[%emt 0:01:03]} 33. Qd3 {[%emt 0:00:02]} (33. Bxd4 $17 {was necessary.} Bxd4 34. Bf5) 33... h5 $19 {[%emt 0:01:18]} ({Don't take} 33... Nxf3 34. Qe2 $16) 34. Bf5 {[%emt 0:00:33]} Nxf5 {[%emt 0:00:14]} 35. exf5 {[%emt 0:00:01]} Ne7 {[%emt 0:00:01]} 36. g4 {[%emt 0:00:28]} hxg4 {[%emt 0:00:03]} 37. fxg4 {[%emt 0:00:02]} Qh6 {[%emt 0:00:42][%csl Ge5][%cal Rh6h2] [#]} 38. Bg1 {[%emt 0:00:05]} Qh4 $40 {[%emt 0:00:28][%mdl 128] Black has strong attack.} 39. f6 $2 {[%emt 0:00:32]} (39. Qf3) 39... Ng6 {[%emt 0:00:03]} 40. Qf5 {[%emt 0:00:01]} Nf8 {[%emt 0:01:00]} ({Wrong is} 40... Qh3 $2 41. Ne3 $19) 41. Kg2 {[%emt 0:00:24]} Qh7 {[%emt 0:00:52]} (41... Ra3 $142 42. Rf3 Qh6) 42. Ne3 {[%emt 0:00:11]} (42. Qxg5+ {keeps fighting.} Ng6 43. Ne3 Rxf1 44. Kxf1 (44. Nxf1 $2 {loses.} c4 $19)) 42... Ra2+ {[%emt 0:00:14]} 43. Rf2 {[%emt 0:00:08]} Qxf5 {[%emt 0:00:02] Chess con chili.} 44. Nxf5 {[%emt 0:00:02]} (44. gxf5 $142 Ra3 45. Ng4) 44... Rxf2+ {[%emt 0:00:02]} 45. Bxf2 {[%emt 0:00:02][%mdl 4096] Endgame KBN-KBN} c4 {[%emt 0:00:06][%cal Bc5c4,Bc4b3,Bb3b2][%mdl 32]} 46. Nh6+ $2 {[%emt 0:00:14]} (46. Nd4 Bxd4 47. Bxd4 cxb3 48. Kf3) 46... Kh7 {[%emt 0:00:02] Black is clearly winning.} 47. Nxf7 {[%emt 0:00:00]} cxb3 {[%emt 0:00:02] aiming for ...b2.} 48. Nxg5+ {[%emt 0:00:26]} Kg6 {[%emt 0:00:02]} 49. Ne4 {[%emt 0:00:15]} Bc3 {[%emt 0:00:01] And now ...b2 would win.} 50. h4 {[%emt 0:00:02]} b2 {[%emt 0:00:02]} 51. h5+ {[%emt 0:00:01]} Kh7 {[%emt 0:00:13]} 52. Ng5+ {[%emt 0:00:01]} Kg8 {[%emt 0:00:01]} 53. f7+ {[%emt 0:00:23]} Kg7 {[%emt 0:00:02] Weighted Error Value: White=0.76/Black=0.14 (very precise)} 0-1

[Event "MCCT Oslo Esports Cup 2022"]
[Site "Oslo"]
[Date "2022.04.20"]
[Round "3.3"]
[White "Mamedyarov, Shakhriyar"]
[Black "Hansen, Eric"]
[Result "1/2-1/2"]
[ECO "E60"]
[WhiteElo "2771"]
[BlackElo "2606"]
[Annotator "TA"]
[PlyCount "64"]
[EventDate "2022.04.14"]
[EventType "tourn"]
[EventCountry "NOR"]
[SourceTitle "playchess.com"]
[Source "ChessBase"]
[SourceQuality "1"]
[TimeControl "1500+10"]

{[%evp 9,64,14,18,17,8,13,17,6,16,9,9,8,7,8,7,7,10,14,10,8,9,12,14,0,0,0,0,0,1,4,7,12,11,0,0,0,0,0,0,0,0,0,0,0,0,0,0,0,0,0,0,0,0,0,0,0,8]} 1. d4 {[%emt 0:10:00]} Nf6 {[%emt 0:10:00]} 2. c4 {[%emt 0:00:02]} g6 {[%emt 0:00:02]} 3. Nf3 {[%emt 0:00:02]} Bg7 {[%emt 0:00:01]} 4. e3 {[%emt 0:00:00]} O-O {[%emt 0:00:01]} 5. Be2 {[%emt 0:00:00]} c5 {[%emt 0:00:49] The position is equal.} 6. dxc5 {[%emt 0:00:05] E60: King's Indian: Unusual lines and Fianchetto Variation without Nc3.} Na6 {[%emt 0:00:13][%cal Bb8a6,Ba6c5,Bc5e4][%mdl 32]} 7. O-O {[%emt 0:00:01]} Nxc5 {[%emt 0:00:00]} 8. b4 {[%emt 0:00:01]} Nce4 {[%emt 0:00:21]} 9. Bb2 {[%emt 0:00:03]} a5 {[%emt 0:00:28]} 10. a3 {[%emt 0:00:28]} axb4 {[%emt 0:00:01]} 11. axb4 {[%emt 0:00:00]} Rxa1 {[%emt 0:00:00]} 12. Bxa1 {[%emt 0:00:02] [#]} Qb6 $146 {[%emt 0:00:29]} ({Predecessor:} 12... d5 13. c5 Bg4 14. Nbd2 e6 15. h3 Bxf3 16. Bxf3 Qa8 17. Bxe4 dxe4 18. Bxf6 Bxf6 19. Nxe4 {1-0 (36) Mamedyarov,S (2764)-Svidler,P (2723) chess24.com INT 2020}) 13. Qb3 {[%emt 0:00:42]} d6 {[%emt 0:00:06]} 14. Nc3 {[%emt 0:01:03]} Bd7 {[%emt 0:00:56][%cal Oe4f2]} 15. Nxe4 {[%emt 0:01:52]} Nxe4 {[%emt 0:00:01]} 16. Bxg7 {[%emt 0:00:01]} Kxg7 {[%emt 0:00:00]} 17. Ra1 {[%emt 0:00:05]} Rc8 {[%emt 0:00:18]} 18. h3 {[%emt 0:00:42]} Kg8 {[%emt 0:00:24]} 19. Qb2 {[%emt 0:01:14]} Be6 {[%emt 0:00:35]} 20. Nd4 {[%emt 0:00:22]} Bd7 {[%emt 0:00:01]} (20... Bxc4 $2 21. Bxc4 e5 {[#]} 22. Ne6 $1 $18 {[%mdl 512]}) 21. Qa3 {[%emt 0:00:45]} e5 {[%emt 0:00:38]} 22. Nb3 {[%emt 0:00:10]} Be6 {[%emt 0:00:16]} 23. Rc1 {[%emt 0:00:03][%cal Ba1c1,Bc1c4,Bc4b4,Bb4b7][%mdl 32]} Kg7 {[%emt 0:01:07]} 24. Bd3 {[%emt 0:01:44]} Nf6 {[%emt 0:00:21]} 25. c5 {[%emt 0:00:14]} Qd8 {[%emt 0:00:25]} 26. Na5 {[%emt 0:00:10]} Bd5 {[%emt 0:01:01]} 27. Nc4 {[%emt 0:03:00]} Bxc4 {[%emt 0:01:19]} 28. Rxc4 {[%emt 0:00:00]} Ra8 {[%emt 0:03:06]} 29. Qb2 {[%emt 0:01:28]} dxc5 {[%emt 0:00:23]} 30. Be2 {[%emt 0:00:40]} cxb4 {[%emt 0:00:20]} 31. Rxb4 {[%emt 0:00:05]} Qd6 {[%emt 0:01:23][%cal Oa8a2]} 32. Rxb7 {[%emt 0:01:20]} Re8 {[%emt 0:00:08] A balanced but interesting game.  Weighted Error Value: White=0.01 (flawless) /Black=0.00 (flawless)} 1/2-1/2

[Event "MCCT Oslo Esports Cup 2022"]
[Site "Oslo"]
[Date "2022.04.20"]
[Round "3.3"]
[White "Van Foreest, Jorden"]
[Black "Duda, Jan-Krzysztof"]
[Result "0-1"]
[ECO "C54"]
[WhiteElo "2714"]
[BlackElo "2750"]
[Annotator "TA"]
[PlyCount "70"]
[EventDate "2022.04.14"]
[EventType "tourn"]
[EventCountry "NOR"]
[SourceTitle "playchess.com"]
[Source "ChessBase"]
[SourceQuality "1"]
[TimeControl "1500+10"]

{[%evp 11,70,9,14,23,13,14,9,12,6,0,22,18,24,10,23,-291,-291,-292,-296,-286,-280,-303,-300,-294,-285,-295,-308,-296,-305,-298,-278,-338,-275,-269,-273,-300,-297,-301,-293,-295,-302,-339,-345,-388,-379,-465,-467,-477,-469,-472,-458,-448,-472,-556,-556,-553,-466,-463,-456,-544,-423]} 1. e4 {[%emt 0:10:00]} e5 {[%emt 0:10:00]} 2. Nf3 {[%emt 0:00:03]} Nc6 {[%emt 0:00:01]} 3. Bc4 {[%emt 0:00:03]} Bc5 {[%emt 0:00:02]} 4. d3 {[%emt 0:00:06]} Nf6 {[%emt 0:00:02]} 5. O-O {[%emt 0:00:02]} h6 {[%emt 0:00:28]} 6. c3 {[%emt 0:00:19]} d6 {[%emt 0:00:05]} (6... d5 7. exd5 Ne7 8. Nxe5 $16) 7. b4 {[%emt 0:00:49] C54: Giuoco Piano: 4 c3 Nf6, main lines with 5 d4 and 5 d3.} Bb6 {[%emt 0:00:02]} 8. Nbd2 {[%emt 0:00:00] is currently scoring better than 8.a4.} O-O {[%emt 0:00:07]} 9. Re1 {[%emt 0:00:34] The position is equal.} Ne7 {[%emt 0:00:30][%cal Bc6e7,Be7g6,Bg6f4,Bf4e2][%mdl 32]} 10. d4 {[%emt 0:00:13]} Ng6 {[%emt 0:01:33]} 11. Bf1 {[%emt 0:00:04]} Re8 {[%emt 0:00:28]} 12. Qc2 {[%emt 0:00:28]} c6 {[%emt 0:01:29] [#]} 13. dxe5 $146 {[%emt 0:00:49][%mdl 8192] This costs White the game.} (13. h3 $11) ({Predecessor:} 13. h3 Bc7 14. dxe5 Nxe5 15. Nxe5 dxe5 16. a4 Be6 17. Nc4 b5 18. Rd1 Qb8 19. Ne3 {1-0 (42) Van Foreest,J (2691)-Ponomariov,R (2631) Riga 2021}) 13... Ng4 $19 {[%emt 0:00:27][%mdl 64] [#] Zwischenzug, Double Attack} (13... Nxe5 14. Nxe5 Rxe5 15. Nc4 $11) (13... dxe5 14. Nc4 $11) 14. Re2 {[%emt 0:04:49]} Nf4 {[%emt 0:00:03]} ({And not} 14... dxe5 15. h3 Nf6 16. Nc4 $11) (14... N4xe5 15. a4 $15) (14... N6xe5 15. h3 $11) 15. Nc4 {[%emt 0:00:10]} Nxe2+ {[%emt 0:00:03]} 16. Qxe2 {[%emt 0:00:02]} Bxf2+ {[%emt 0:01:15]} 17. Kh1 {[%emt 0:00:05]} Bb6 {[%emt 0:00:02][%cal Rd6e5,Bf2b6,Bb6c7,Bc7b8,Bb8a7][%mdl 32]} ({Weaker is} 17... dxe5 18. h3 $15) 18. h3 {[%emt 0:03:37]} Nxe5 {[%emt 0:00:05]} 19. Nfxe5 {[%emt 0:00:48]} dxe5 {[%emt 0:00:00]} 20. a4 {[%emt 0:00:01]} Be6 {[%emt 0:00:42]} 21. a5 {[%emt 0:00:09]} Bc7 {[%emt 0:00:06]} 22. Be3 {[%emt 0:00:11]} Qh4 {[%emt 0:00:13]} 23. Bg1 {[%emt 0:00:46]} b5 {[%emt 0:01:08]} 24. Nd2 {[%emt 0:00:17]} a6 {[%emt 0:00:03]} 25. Nf3 {[%emt 0:00:17]} Qf6 {[%emt 0:00:08]} 26. Qe3 {[%emt 0:00:21]} Bb8 {[%emt 0:01:40]} 27. Bh2 {[%emt 0:00:13]} Ba7 {[%emt 0:00:03]} 28. Qe1 {[%emt 0:00:02] [#]} Bxh3 $1 {[%emt 0:01:45] Black is clearly winning.} 29. Nxe5 {[%emt 0:00:04]} (29. Bxe5 Qg6) 29... Bc8 {[%emt 0:00:17][%cal Bh3c8,Bc8g4,Bg4f5][%mdl 32]} ({Don't blunder} 29... Rxe5 $2 30. Bxe5 Bxg2+ 31. Bxg2 Qxe5 32. Qd1 $19) 30. Nf3 {[%emt 0:00:28]} Bg4 {[%emt 0:00:13]} 31. e5 {[%emt 0:00:01]} Qg6 {[%emt 0:00:14]} 32. Qg3 {[%emt 0:00:50]} Rad8 {[%emt 0:00:12]} 33. Re1 {[%emt 0:00:04]} Bf5 {[%emt 0:00:30]} 34. Qf4 {[%emt 0:00:13]} Qg4 {[%emt 0:00:04]} 35. Qc1 {[%emt 0:00:35]} Bf2 {[%emt 0:00:11] Weighted Error Value: White=0.39/Black=0.07 (flawless)} 0-1

[Event "MCCT Oslo Esports Cup 2022"]
[Site "Oslo"]
[Date "2022.04.20"]
[Round "3.3"]
[White "Le, Quang Liem"]
[Black "Praggnanandhaa R"]
[Result "0-1"]
[ECO "A23"]
[WhiteElo "2709"]
[BlackElo "2624"]
[Annotator "TA"]
[PlyCount "108"]
[EventDate "2022.04.14"]
[EventType "tourn"]
[EventCountry "NOR"]
[SourceTitle "playchess.com"]
[Source "ChessBase"]
[SourceQuality "1"]
[TimeControl "1500+10"]

{[%evp 9,108,4,3,23,20,-25,-41,-23,-33,-29,-38,-28,-45,-48,-16,-62,-71,-70,-34,-42,-39,-90,-94,-93,-89,-97,-76,-95,-23,-23,-23,-26,0,0,-9,-31,37,0,0,0,0,0,0,0,0,0,0,0,0,0,0,0,81,72,34,0,0,0,0,0,0,0,0,0,0,0,0,0,0,0,0,0,0,0,0,0,81,87,119,83,97,75,678,668,663,656,646,626,591,225,197,0,0,-481,-465,-473,-458,-458,-448,-6179,-5135]} 1. c4 {[%emt 0:10:00]} e5 {[%emt 0:10:00]} 2. g3 {[%emt 0:00:11]} Nf6 {[%emt 0:00:02]} 3. Bg2 {[%emt 0:00:01]} Bc5 {[%emt 0:00:01]} 4. Nc3 {[%emt 0:00:10]} c6 {[%emt 0:00:09]} 5. Nf3 {[%emt 0:00:36]} e4 {[%emt 0:00:04]} 6. Nh4 {[%emt 0:00:41] A23: English Opening: 1...e5 2 Nc3 Nf6 3 g3 c6.} d5 {[%emt 0:00:02] [#]} 7. O-O $146 {[%emt 0:00:24]} ({Predecessor:} 7. d4 Be7 8. cxd5 cxd5 9. O-O O-O 10. f3 exf3 11. Rxf3 Nc6 12. Nf5 Ne4 13. Rf1 {1-0 (22) Nepomniachtchi,I (2773)-Anand,V (2757) Kolkata 2019}) 7... h6 {[%emt 0:04:18]} 8. d4 {[%emt 0:00:29] Black is slightly better.} Bb6 {[%emt 0:00:24]} 9. f3 {[%emt 0:02:22][%cal Rf3e4]} dxc4 {[%emt 0:00:51]} 10. e3 $1 {[%emt 0:00:05]} exf3 {[%emt 0:00:50]} 11. Qxf3 {[%emt 0:00:03]} O-O {[%emt 0:00:24]} (11... Bg4 $5 {[%cal Rg4f3]} 12. Qf2 O-O $11) 12. Bd2 {[%emt 0:01:25]} (12. Nf5 $11) 12... Bg4 {[%emt 0:00:50]} 13. Qf2 {[%emt 0:00:06]} Be6 {[%emt 0:00:27]} 14. Nf5 {[%emt 0:01:04][%cal Of5h6]} Nbd7 {[%emt 0:00:03]} 15. h3 {[%emt 0:00:32]} ({White should try} 15. a4 $15) 15... Qc7 $17 {[%emt 0:01:36]} 16. g4 {[%emt 0:00:10]} Rad8 {[%emt 0:00:09]} 17. Rad1 {[%emt 0:00:06]} Bxf5 {[%emt 0:01:18]} 18. Qxf5 {[%emt 0:00:17]} c5 {[%emt 0:00:21]} (18... Rfe8 $17) 19. Nb5 {[%emt 0:00:55]} Qb8 {[%emt 0:00:17]} 20. Kh1 {[%emt 0:00:51]} a6 {[%emt 0:00:36]} 21. Na3 {[%emt 0:00:04]} cxd4 {[%emt 0:00:34]} 22. exd4 {[%emt 0:00:03]} Bxd4 {[%emt 0:01:06]} (22... Rc8 $1 $15) 23. Bb4 {[%emt 0:02:23] This bishop pair is nice.} (23. Bxh6 $5 Nc5 24. Bf4 $16 (24. Rxd4 Rxd4 25. Qxc5 Nxg4 $11)) 23... Ne5 {[%emt 0:00:15]} ({Resist} 23... g6 24. Qc2 Ne5 25. Rxf6 (25. Bxf8 Nexg4 26. hxg4 Nxg4 $11) 25... Nxg4 26. Rxg6+ $1 {[%mdl 512]} (26. hxg4 Bxf6 27. Bxf8 Kxf8 $14) 26... fxg6 27. Qxg6+ (27. hxg4 Qg3 $11) 27... Bg7 28. Qxg4 Rxd1+ 29. Qxd1 $11) 24. Bxf8 {[%emt 0:00:13]} Kxf8 {[%emt 0:00:02]} 25. b3 {[%emt 0:01:43]} b5 {[%emt 0:01:27]} 26. bxc4 {[%emt 0:00:44]} bxc4 {[%emt 0:00:07]} 27. Nc2 {[%emt 0:00:14]} Nd3 {[%emt 0:00:04]} 28. Nxd4 {[%emt 0:00:14]} Rxd4 {[%emt 0:00:03]} 29. Rb1 {[%emt 0:00:03]} Qd8 {[%emt 0:01:01]} 30. Rb7 {[%emt 0:00:20]} Rd7 {[%emt 0:01:01]} (30... Rd6 $1 $11) 31. Rxd7 $16 {[%emt 0:01:33]} Qxd7 {[%emt 0:00:02]} 32. Qa5 {[%emt 0:00:02]} (32. Be4 $5) 32... Qd6 {[%emt 0:00:27]} 33. Qa4 {[%emt 0:00:37]} Ne5 {[%emt 0:00:40]} 34. Rd1 {[%emt 0:00:10]} Nd3 {[%emt 0:00:12] White must now prevent ...Nf2+.} 35. Rf1 {[%emt 0:00:24] Inhibits Nf2+.} Ne5 {[%emt 0:00:24]} 36. Rb1 {[%emt 0:00:13]} Kg8 {[%emt 0:00:07]} 37. Qb4 {[%emt 0:00:10]} Qd3 {[%emt 0:00:27] Threatens to win with ...Ne4.} 38. Qe1 {[%emt 0:00:27] Prevents Ne4. And now Rb8+ would win.} Qd4 {[%emt 0:00:19]} 39. Qg1 {[%emt 0:00:12]} Qf4 {[%emt 0:00:10] ...Ne4 is the strong threat.} 40. Rf1 {[%emt 0:00:04]} Qg3 {[%emt 0:00:15]} 41. Qf2 {[%emt 0:00:35]} Qc3 {[%emt 0:00:18]} 42. Qa7 {[%emt 0:00:12]} Nd3 {[%emt 0:00:10]} (42... a5 $11 {remains equal.}) 43. Qxa6 {[%emt 0:00:26]} Qd4 {[%emt 0:00:01]} 44. a4 {[%emt 0:00:33] aiming for Qc8+.} Nf2+ {[%emt 0:00:10]} 45. Kh2 {[%emt 0:00:14] Hoping for Qc8+.} Nd1 $2 {[%emt 0:00:21][%mdl 8192]} (45... g6 $16) 46. Qc8+ $18 {[%emt 0:00:10]} Kh7 {[%emt 0:00:02]} 47. Qf5+ {[%emt 0:00:00]} Kg8 {[%emt 0:00:01] [#]} 48. Qf4 {[%emt 0:00:00]} Qd3 {[%emt 0:00:09]} 49. Re1 $2 {[%emt 0:00:26]} (49. a5 c3 50. a6 Qxa6 51. Rxd1) 49... c3 {[%emt 0:00:10][%cal Bc4c3,Bc3c2][%mdl 32]} 50. Re7 $2 {[%emt 0:00:17]} (50. Be4 $18 {Qb8+ would kill now.} Nxe4 51. Qxe4 (51. Rxe4 c2 $11) 51... Qd2+ 52. Re2 Qd6+ 53. Qe5) 50... c2 $1 $11 {[%emt 0:00:03]} (50... Qd2 $2 51. Qxd2 cxd2 52. a5 $18) 51. Rc7 $2 {[%emt 0:00:01][%mdl 8192]} (51. Be4 $11 {and White stays safe.} Qe2+ 52. Kg1 Qe1+ 53. Kh2 Qe2+ 54. Kg1 Qe1+ 55. Kh2 Qe2+) 51... Ne3 $19 {[%emt 0:00:02] Black is clearly winning.} 52. Rc8+ {[%emt 0:00:22]} Kh7 {[%emt 0:00:01]} 53. a5 {[%emt 0:00:01]} Qd2 {[%emt 0:00:22][%csl Ge3,LRa5,LRg2][%cal Rd2g2]} 54. Rxc2 {[%emt 0:00:23] [#]} (54. Qf3 $142) 54... Nexg4+ $1 {[%emt 0:00:12][%mdl 512] Weighted Error Value: White=0.41/Black=0.21 (precise)} 0-1